Cogmind - Beta 14 @@@ ROGUE MODE // 2024.12.07 @ 01:46:16 Player: Mathewnd Result: Destroyed by H-66 Slayer with Gauss Rifle Performance ------------- Evolutions (5) 2500 Regions Visited (10) 2000 Robots Destroyed (104) 520 Value Destroyed (4666) 4666 Prototype IDs (3) 60 Alien Tech Used (0) 0 Bonus (324) 324 TOTAL SCORE: 10070 Bonus ------- High Alert Combat Kills 184 Follower Combat Kills 103 Network Hubs Disabled 200 Friendly Fire -163 Cogmind --------- Core Integrity 0/1000 Matter 300/300 Energy 100/100 System Corruption 2% Temperature Cool (0) Movement Core (200) Ox3 Location -5/Hub_04(d) Parts ------- > --- POWER (2) -------- (None) > --- PROPULSION (5) --- (None) > --- UTILITY (7) ------ Medium Storage Unit Core Analyzer > --- WEAPON (3) ------- (None) > --- INVENTORY (10) --- Large Storage Unit Machine Analyzer Peak State ------------ > --- POWER ------------ Neutrino Core Neutrino Core > --- PROPULSION ------- Carbon-fiber Leg Carbon-fiber Leg Carbon-fiber Leg Carbon-fiber Leg Armored Leg > --- UTILITY ---------- Advanced Heat Sink Advanced Cooling System Medium Storage Unit Improved Targeting Computer Improved Target Analyzer Core Analyzer Weapon Cycler > --- WEAPON ----------- Long-range Proton Cannon KE Penetrator Enhanced Gauss Cannon > --- INVENTORY -------- Neutrino Core Quantum Reactor Carbon-fiber Leg Large Storage Unit Machine Analyzer Heavy Armor Plating Wave Gun Quantum Rifle Quantum Rifle [Rating: 79] Favorites ----------- Power Neutrino Core Engine Light Ion Engine Power Core Neutrino Core Reactor Light Antimatter Reactor Propulsion Aluminum Leg Leg Aluminum Leg Utility Improved Targeting Computer Device Weapon Cycler Storage Small Storage Unit Processor Improved Targeting Computer Protection Hardened Light Armor Plating Weapon Enhanced Gauss Cannon Energy Gun Thermic Laser Energy Cannon Proton Cannon Ballistic Gun KE Penetrator Ballistic Cannon Enhanced Gauss Cannon Launcher Heavy Rocket Launcher Slashing Weapon Phasing Sabre Piercing Weapon Spear Build | -11 -10 -9 -8 -7 -6 -5 -5 -5 -5 -5 ------- Run | Yrd Mat Mat Mat Fac Fac Fac Ext Cet Arc Hub Slots Evolved 10 | . . 2 2 2 2 2 . . . . Power 1 | . . . . . 1 . . . . . Propulsion 3 | . . 2 . . . 1 . . . . Utility 5 | . . . 2 1 1 1 . . . . Weapon 1 | . . . . 1 . . . . . . Parts Attached 118 | 6 1 14 13 15 15 3 36 5 1 9 Power 15 | 1 . 2 2 1 2 1 3 1 . 2 Engine 4 | 1 . 1 . 1 1 . . . . . Core 9 | . . 1 2 . 1 1 2 1 . 1 Reactor 2 | . . . . . . . 1 . . 1 Propulsion 39 | 2 . 7 4 5 5 1 11 2 1 1 Treads . | . . . . . . . . . . . Leg 39 | 2 . 7 4 5 5 1 11 2 1 1 Wheel . | . . . . . . . . . . . Hover . | . . . . . . . . . . . Flight . | . . . . . . . . . . . Utility 27 | 1 1 . 4 4 2 1 9 2 . 3 Device 11 | . . . 1 3 . . 5 1 . 1 Storage 3 | 1 . . . . . . 2 . . . Processor 5 | . 1 . 1 . . 1 . 1 . 1 Hackware . | . . . . . . . . . . . Protection 8 | . . . 2 1 2 . 2 . . 1 Artifact . | . . . . . . . . . . . Weapon 37 | 2 . 5 3 5 6 . 13 . . 3 Energy Gun 19 | . . 5 2 1 2 . 6 . . 3 Energy Cannon 3 | . . . . 1 1 . 1 . . . Ballistic Gun 8 | 2 . . 1 3 1 . 1 . . . Ballistic Cannon 2 | . . . . . . . 2 . . . Launcher 3 | . . . . . 2 . 1 . . . Special Weapon . | . . . . . . . . . . . Impact Weapon . | . . . . . . . . . . . Slashing Weapon 1 | . . . . . . . 1 . . . Piercing Weapon 1 | . . . . . . . 1 . . . Special Melee Weapon . | . . . . . . . . . . . Unidentified Prototypes . | . . . . . . . . . . . Parts Lost 65 | . . 5 7 7 1 . 19 4 1 21 Power 9 | . . 1 1 . 1 . 1 1 . 4 Propulsion 17 | . . 1 3 1 . . 4 2 1 5 Utility 18 | . . . 2 2 . . 7 1 . 6 Weapon 21 | . . 3 1 4 . . 7 . . 6 Highest Loss Streak 10 | . . 2 5 5 1 . 8 4 1 10 To Critical Strikes . | . . . . . . . . . . . Average Slot Usage (%) 96 | . 95 98 98 98 95 97 96 99 99 82 Engine 2 | . 14 8 . 2 7 1 . . . . Core 6 | . . 2 9 4 4 9 8 11 11 5 Leg 30 | . 28 43 35 29 25 27 28 29 28 20 Device 11 | . . . 5 14 13 11 17 16 17 15 Storage 6 | . 14 11 9 7 6 5 5 5 5 5 Processor 10 | . 9 11 9 7 6 9 11 16 17 15 Protection 5 | . . . 11 6 10 11 4 . . 1 Energy Gun 6 | . . 19 10 . 7 5 5 . . 6 Energy Cannon 2 | . . . . 6 5 5 . 5 5 2 Ballistic Gun 5 | . 28 2 7 14 3 5 1 5 5 2 Ballistic Cannon 1 | . . . . . . . 3 5 5 2 Peak Build Rating 79 | 6 8 15 23 39 59 68 77 77 78 79 Average Rating 46 | 3 6 12 21 33 48 65 68 76 77 65 On Entrance 38 | . 6 8 12 21 30 59 68 69 77 78 Naked Turns . | . . . . . . . . . . . Heaviest Build 83 | 10 10 16 26 38 64 68 83 72 65 65 Greatest Support 88 | 20 20 43 47 62 73 83 88 80 80 60 Greatest Overweight (x) 18 | . . . . . 1 . 1 . 1 18 Average Overweight (x) . | . . . . . . . . . . 1 Largest Inventory Capacity 15 | 8 8 8 8 8 8 8 15 10 10 10 Average Capacity 8 | 6 8 8 8 8 8 8 8 10 10 10 Most Carried 10 | 7 8 8 8 8 8 8 10 10 9 10 Average Carried 7 | 4 7 7 7 7 6 7 7 6 7 5 Final Capacity 10 | 8 8 8 8 8 8 8 10 10 10 10 Final Carried 10 | 6 8 8 8 6 8 8 10 6 9 2 Class Distribution -------------------- 41% | Scavenger-Gunner 28% | Mutant 15% | Scavenger-Mutant 6% | Gunner 5% | Scavenger-Tank Dominant Class ---------------- Mutant | -10/Materials Mutant | -9/Materials Mutant | -8/Materials Scavenger-Gunner | -7/Factory Scavenger-Tank | -6/Factory Scavenger-Gunner | -5/Factory Scavenger-Gunner | -5/Extension Scavenger-Gunner | -5/Cetus Scavenger-Gunner | -5/Archives Scavenger-Gunner | -5/Hub_04(d) Resources | -11 -10 -9 -8 -7 -6 -5 -5 -5 -5 -5 ----------- Run | Yrd Mat Mat Mat Fac Fac Fac Ext Cet Arc Hub Matter Collected 2910 | 222 64 154 329 251 280 66 1016 195 206 127 Remotely . | . . . . . . . . . . . Salvage Created 4714 | . 77 643 721 441 367 67 1587 350 188 273 Parts 224 | . 3 43 37 21 24 3 62 17 8 6 Haulers Intercepted . | . . . . . . . . . . . Recyclers Shooed 1 | . . . . . . . 1 . . . Parts Field Recycled . | . . . . . . . . . . . Retrieved Matter . | . . . . . . . . . . . Parts Self-Destructed . | . . . . . . . . . . . Prevented . | . . . . . . . . . . . Kills | -11 -10 -9 -8 -7 -6 -5 -5 -5 -5 -5 ------- Run | Yrd Mat Mat Mat Fac Fac Fac Ext Cet Arc Hub Combat Hostiles Destroyed 91 | . 2 15 21 13 7 1 22 4 2 4 Melee 2 | . . . . . . . 2 . . . Guns 58 | . 2 13 21 9 2 . 5 3 . 3 Cannons 21 | . . . . 3 2 1 11 1 2 1 AOE 8 | . . 2 . . 3 . 3 . . . Classes Destroyed 12 | . 1 4 1 1 2 . 3 . . . Builder 4 | . . . . . . . 3 . . 1 Tunneler 1 | . . . . . 1 . . . . . Recycler 2 | . . . . . . . 2 . . . Operator 2 | . . 1 . . . . 1 . . . Watcher 3 | . . . . . . . 2 1 . . Swarmer 15 | . . 4 7 4 . . . . . . Grunt 43 | . 2 6 10 7 2 . 13 . . 3 Brawler 2 | . . . 1 . 1 . . . . . Duelist 2 | . . 1 1 . . . . . . . Sentry 15 | . . 4 2 . . 1 5 . 2 1 Hunter 5 | . . . . . 3 . 2 . . . Programmer 5 | . . . . 2 1 . 2 . . . Cetus Guard 4 | . . . . . . . . 4 . . Savage 1 | . . . . . . . . 1 . . Best Kill Streak 10 | . 1 4 10 4 4 1 6 4 1 5 Combat Bots Only 10 | . 1 4 10 4 3 1 4 4 1 4 Max Kills in Single Turn 2 | . 1 2 2 1 2 1 2 2 1 2 Gunslinging 1 | . . . 1 . . . . . . . Exploded 2 | . . 1 . . 2 . 2 . . . Melee 1 | . . . . . . . 1 . . . Uniques/NPCs Destroyed . | . . . . . . . . . . . Combat | -11 -10 -9 -8 -7 -6 -5 -5 -5 -5 -5 -------- Run | Yrd Mat Mat Mat Fac Fac Fac Ext Cet Arc Hub Hostile Shots Fired 789 | . 9 107 93 108 26 4 228 34 19 161 Missed 232 | . 2 31 20 28 8 3 78 15 8 39 Damage Taken 9290 | . 75 982 868 1171 300 112 2733 505 296 2248 Core 1426 | . 21 147 77 138 31 . 282 54 52 624 Absorbed by Shields 433 | . . . 118 . . . 315 . . . Ignored by Resistances 156 | . . . . . 39 7 110 . . . Regen/Repaired (Parts) 238 | . . 94 . . 144 . . . . . Core Remaining (%) 86 | 100 91 63 86 80 96 . . . . . Volleys Fired 263 | . 8 37 51 31 9 2 82 21 11 11 Largest 3 | . 2 2 2 3 3 3 3 3 3 3 Hottest 269 | . 40 90 81 146 188 188 223 171 171 269 Shots Fired 629 | . 16 73 97 93 27 6 199 63 25 30 Gun 427 | . 16 73 97 62 15 4 109 21 7 23 Cannon 186 | . . . . 31 9 2 77 42 18 7 Launcher 16 | . . . . . 3 . 13 . . . Special . | . . . . . . . . . . . Kinetic 316 | . 16 15 51 59 6 2 99 42 18 8 Thermal 171 | . . . 37 34 9 2 70 . . 19 Explosive 16 | . . . . . 3 . 13 . . . Electromagnetic 126 | . . 58 9 . 9 2 17 21 7 3 Robot Hit Streak 33 | . 10 23 18 8 8 8 16 6 18 33 Robot Miss Streak 5 | . 1 4 5 5 2 . 4 2 1 1 Penetration Max 1 | . . . . . . . 1 . . 1 Secondary Targets 4 | . . 1 1 . . . . . . 2 Max Gunslinging Chain 1 | . . 1 1 . . . . . . 1 Shots Hit Robots 407 | . 13 56 71 57 15 5 120 29 18 23 Core Hits 252 | . 4 36 37 47 14 3 70 18 11 12 Critical Kills 7 | . 1 . 2 1 . . 2 1 . . Critical Parts Destroyed . | . . . . . . . . . . . Critical Strikes 35 | . 1 . 4 1 1 1 20 4 3 . Burn 15 | . . . 2 . 1 1 11 . . . Meltdown 1 | . . . . 1 . . . . . . Destroy 6 | . 1 . 2 . . . 2 1 . . Blast 9 | . . . . . . . 5 3 1 . Corrupt 2 | . . . . . . . . . 2 . Sever 2 | . . . . . . . 2 . . . Melee Attacks 10 | . . . . . . . 10 . . . Impact . | . . . . . . . . . . . Slashing 10 | . . . . . . . 10 . . . Piercing . | . . . . . . . . . . . Sneak Attacks . | . . . . . . . . . . . Combat Hostiles . | . . . . . . . . . . . Follow-up Attacks . | . . . . . . . . . . . Damage Inflicted 10912 | . 107 891 1320 1131 716 109 4397 909 506 826 Guns 5604 | . 107 722 1320 746 152 56 1444 307 141 609 Cannons 3176 | . . . . 385 138 53 1419 602 365 214 Explosions 1826 | . . 169 . . 426 . 1231 . . . Melee 303 | . . . . . . . 303 . . . Ramming 3 | . . . . . . . . . . 3 Kinetic 4649 | . 107 97 788 713 80 20 1702 559 330 253 Thermal 2524 | . . 169 422 418 185 36 833 . . 461 Explosive 1544 | . . . . . 313 . 1231 . . . Electromagnetic 1889 | . . 625 110 . 138 53 328 350 176 109 Impact . | . . . . . . . . . . . Slashing 303 | . . . . . . . 303 . . . Piercing . | . . . . . . . . . . . Highest Corruption 2 | . 2 1 . . . . . . . 2 Average Corruption 1 | . 2 1 . . . . . . . 2 Corruption Purged . | . . . . . . . . . . . Corruption Blocked . | . . . . . . . . . . . Effects 4 | . . 2 . . . . . . . 2 Message Errors 1 | . . . . . . . . . . 1 Matter Fused 2 | . . 2 . . . . . . . . Parts Rejected 1 | . . . . . . . . . . 1 Overload Shots . | . . . . . . . . . . . Overflow Damage 113 | . . . . . 12 . 101 . . . Projectiles 44 | . . . . . . . 44 . . . Explosions 59 | . . . . . 12 . 47 . . . Melee 10 | . . . . . . . 10 . . . Knockbacks 8 | . . . . . . . 5 . . 3 Impact . | . . . . . . . . . . . Kinetic 7 | . . . . . . . 5 . . 2 Secondary 1 | . . . . . . . . . . 1 Self-Inflicted Damage 77 | . . 76 . . . . . . . 1 Shots 2 | . . 2 . . . . . . . . Rammed 1 | . . . . . . . . . . 1 Targets Rammed 2 | . . . 1 . . . . . . 1 Kicked 1 | . . . 1 . . . . . . . Crushed . | . . . . . . . . . . . Highest Temperature 428 | . 12 99 372 226 366 156 428 167 31 317 Average Temperature 94 | . 7 36 104 79 150 78 120 61 18 111 Received Heat Transfer 2202 | . 42 369 303 312 63 . 753 45 63 252 Effects 10 | . . . 2 . 2 . 6 . . . Shutdowns 2 | . . . . . 1 . 1 . . . Energy Bleed 2 | . . . . . 1 . 1 . . . Interference 3 | . . . 2 . . . 1 . . . Matter Decay 1 | . . . . . . . 1 . . . Short Circuit 2 | . . . . . . . 2 . . . Siege Activations . | . . . . . . . . . . . Robots Corrupted . | . . . . . . . . . . . Combat Hostiles . | . . . . . . . . . . . Parts Fried 4 | . . 2 . . . . 1 . 1 . Impact Corruptions . | . . . . . . . . . . . Robots Melted 2 | . . . . 1 . . 1 . . . Combat Hostiles 2 | . . . . 1 . . 1 . . . Parts Melted 11 | . . . 2 4 . . 5 . . . Heat Transferred 6238 | . . 250 1073 592 337 200 3157 . . 629 Parts Sabotaged . | . . . . . . . . . . . Parts Stolen . | . . . . . . . . . . . Parts Stripped . | . . . . . . . . . . . Power Chain Reactions 3 | . . 3 . . . . . . . . Alert | -11 -10 -9 -8 -7 -6 -5 -5 -5 -5 -5 ------- Run | Yrd Mat Mat Mat Fac Fac Fac Ext Cet Arc Hub Peak Influence 499 | . 95 380 436 221 271 190 499 370 296 87 Initial 256 | . . 39 73 141 74 121 93 256 148 33 Average 209 | . 63 220 175 130 150 152 342 321 241 39 Maximum Alert Level 2 | . . 1 2 1 1 . 2 1 1 . Low Security (%) 55 | 100 100 45 61 80 85 100 23 . 29 100 Level 1 29 | . . 54 25 19 14 . 24 100 70 . Level 2 14 | . . . 12 . . . 52 . . . Level 3 . | . . . . . . . . . . . Level 4 . | . . . . . . . . . . . Level 5 . | . . . . . . . . . . . High Security . | . . . . . . . . . . . Max Security . | . . . . . . . . . . . Squads Dispatched 21 | . 1 2 3 5 3 . 5 . . 2 Investigation 3 | . . 1 . . . . 2 . . . Extermination 2 | . . . . 1 1 . . . . . Reinforcement 9 | . 1 1 . 1 2 . 2 . . 2 Assault 1 | . . . . . . . 1 . . . Garrison 6 | . . . 3 3 . . . . . . Intercept . | . . . . . . . . . . . Searches Triggered . | . . . . . . . . . . . Construction Impeded 2 | . . . . . . . 1 . . 1 Haulers Reinforced . | . . . . . . . . . . . Active Scanning Responses . | . . . . . . . . . . . Cargo Convoy Interrupts . | . . . . . . . . . . . Stealth | -11 -10 -9 -8 -7 -6 -5 -5 -5 -5 -5 --------- Run | Yrd Mat Mat Mat Fac Fac Fac Ext Cet Arc Hub Distress Signals 11 | . . 3 2 1 . . 3 2 . . Communications Jammed . | . . . . . . . . . . . Distress Signals . | . . . . . . . . . . . Times Spotted 159 | . 4 30 32 17 14 1 41 8 4 8 Peak Tracking Total 8 | . 2 8 6 4 3 1 5 5 2 4 Tactical Retreats 15 | . 1 1 3 2 1 . 7 . . . Traps | -11 -10 -9 -8 -7 -6 -5 -5 -5 -5 -5 ------- Run | Yrd Mat Mat Mat Fac Fac Fac Ext Cet Arc Hub Traps Triggered 4 | . 1 1 . . . . 2 . . . Indirectly . | . . . . . . . . . . . Trap Hack Attempts . | . . . . . . . . . . . Triggered . | . . . . . . . . . . . Disarmed . | . . . . . . . . . . . Reprogrammed . | . . . . . . . . . . . Reused . | . . . . . . . . . . . Traps Extracted . | . . . . . . . . . . . Installed . | . . . . . . . . . . . Triggered . | . . . . . . . . . . . Machines | -11 -10 -9 -8 -7 -6 -5 -5 -5 -5 -5 ---------- Run | Yrd Mat Mat Mat Fac Fac Fac Ext Cet Arc Hub Machines Disabled 13 | . . 1 . . 2 . 3 4 3 . Max in Single Turn 2 | . . 1 . . 2 . 2 1 1 . Network Hub 1 | . . . . . . . . . . 1 Machines Repaired . | . . . . . . . . . . . Machines Dismantled . | . . . . . . . . . . . Machines Sabotaged . | . . . . . . . . . . . Overloaded Fab Kills . | . . . . . . . . . . . Hacking | -11 -10 -9 -8 -7 -6 -5 -5 -5 -5 -5 --------- Run | Yrd Mat Mat Mat Fac Fac Fac Ext Cet Arc Hub Machines Accessed 43 | . 1 8 8 4 3 1 12 3 . 3 Terminals 36 | . 1 6 6 3 2 1 11 3 . 3 Fabricators . | . . . . . . . . . . . Repair Stations 3 | . . 1 . 1 1 . . . . . Recycling Units 2 | . . . 1 . . . 1 . . . Scanalyzers 2 | . . 1 1 . . . . . . . Garrison Access . | . . . . . . . . . . . Total Hacks 107 | . 1 22 17 12 10 2 34 4 . 5 Successful 45 | . . 7 8 6 6 2 13 2 . 1 Failed 61 | . 1 15 9 6 4 . 20 2 . 4 Catastrophic 16 | . . 3 5 2 1 . 3 . . 2 Database Lockouts 1 | . . . . . . . 1 . . . Manual 38 | . 1 13 7 5 3 . 6 . 1 2 Terminals 88 | . 1 13 11 11 8 2 33 4 . 5 Fabricators . | . . . . . . . . . . . Repair Stations 10 | . . 7 . 1 2 . . . . . Recycling Units 4 | . . . 3 . . . 1 . . . Scanalyzers 5 | . . 2 3 . . . . . . . Garrison Access . | . . . . . . . . . . . Terminal Hacks 32 | . . 2 3 6 4 2 12 2 . 1 Record 14 | . . . 1 . 3 1 7 2 . . Robot Schematic 1 | . . . . . . . 1 . . . Open Door 2 | . . . . . . . 2 . . . Branch Access Points 1 | . . . . 1 . . . . . . Emergency Access Points 1 | . . . . 1 . . . . . . Terminal Index 3 | . . 1 . 1 . . 1 . . . Scanalyzer Index 1 | . . 1 . . . . . . . . Alert Level 3 | . . . 1 1 . . 1 . . . Locate Traps 6 | . . . 1 2 1 1 . . . 1 Fabricator Hacks . | . . . . . . . . . . . Repair Station Hacks 7 | . . 5 . . 2 . . . . . Scan Component 4 | . . 3 . . 1 . . . . . Repair 3 | . . 2 . . 1 . . . . . Recycling Unit Hacks 3 | . . . 2 . . . 1 . . . Report Inventory 2 | . . . 1 . . . 1 . . . Retrieve Components 1 | . . . 1 . . . . . . . Scanalyzer 3 | . . . 3 . . . . . . . Insert Component 3 | . . . 3 . . . . . . . Garrison Access Hacks . | . . . . . . . . . . . Unauthorized Hacks . | . . . . . . . . . . . Terminals . | . . . . . . . . . . . Fabricators . | . . . . . . . . . . . Repair Stations . | . . . . . . . . . . . Recycling Units . | . . . . . . . . . . . Scanalyzers . | . . . . . . . . . . . Garrison Access . | . . . . . . . . . . . Data Cores Recovered 1 | . . 1 . . . . . . . . Used 1 | . . 1 . . . . . . . . Hacking Detections 40 | . 1 8 7 4 3 1 10 3 . 3 Full Trace Events 2 | . . 1 . . . . 1 . . . Feedback Events . | . . . . . . . . . . . Feedback Blocked . | . . . . . . . . . . . Robot Schematics Acquired 1 | . . . . . . . 1 . . . Robots Built . | . . . . . . . . . . . Authchips . | . . . . . . . . . . . Time . | . . . . . . . . . . . Total Robot Build Rating . | . . . . . . . . . . . Part Schematics Acquired . | . . . . . . . . . . . Parts Built . | . . . . . . . . . . . Authchips . | . . . . . . . . . . . Time . | . . . . . . . . . . . Total Part Build Rating . | . . . . . . . . . . . Parts Repaired 3 | . . 2 . . 1 . . . . . Time 101 | . . 79 . . 22 . . . . . Parts Recycled . | . . . . . . . . . . . Recycled Matter . | . . . . . . . . . . . Retrieved Matter . | . . . . . . . . . . . Retrieved Components 3 | . . . 3 . . . . . . . Parts Scanalyzed . | . . . . . . . . . . . Part Schematics Acquired . | . . . . . . . . . . . Parts Damaged . | . . . . . . . . . . . Bothacking | -11 -10 -9 -8 -7 -6 -5 -5 -5 -5 -5 ------------ Run | Yrd Mat Mat Mat Fac Fac Fac Ext Cet Arc Hub Used RIF Installer . | . . . . . . . . . . . Robots Hacked . | . . . . . . . . . . . Non-combat . | . . . . . . . . . . . Combat . | . . . . . . . . . . . Robot Hacks Applied . | . . . . . . . . . . . Relay Couplers Released . | . . . . . . . . . . . Fabnet Peak Effective % . | . . . . . . . . . . . Robots Rewired 1 | . . . . . . . . . 1 . Allies Hacked . | . . . . . . . . . . . Hacks Repelled . | . . . . . . . . . . . Allies | -11 -10 -9 -8 -7 -6 -5 -5 -5 -5 -5 -------- Run | Yrd Mat Mat Mat Fac Fac Fac Ext Cet Arc Hub Total Allies 5 | . . . . . . . 4 . 1 . Largest Group 2 | . . . . . . . 2 2 1 1 Highest-Rated Group 56 | . . . . . . . 50 39 56 56 Highest-Rated Ally 56 | . . . . . . . 25 20 56 56 Total Orders . | . . . . . . . . . . . Ally Attacks 25 | . . . . . . . 17 1 7 . Total Damage 710 | . . . . . . . 542 45 123 . Kills 2 | . . . . . . . 1 . 1 . Allies Corrupted 1 | . . . . . . . . . . 1 Allies Melted . | . . . . . . . . . . . Intel | -11 -10 -9 -8 -7 -6 -5 -5 -5 -5 -5 ------- Run | Yrd Mat Mat Mat Fac Fac Fac Ext Cet Arc Hub Robot Analysis Total . | . . . . . . . . . . . Derelict Logs Recovered . | . . . . . . . . . . . Drone Launches . | . . . . . . . . . . . Drone Recoveries . | . . . . . . . . . . . Exploration | -11 -10 -9 -8 -7 -6 -5 -5 -5 -5 -5 ------------- Run | Yrd Mat Mat Mat Fac Fac Fac Ext Cet Arc Hub Turns Passed 7073 | 93 269 868 843 957 761 202 1811 321 455 493 Spaces Moved 4293 | 67 185 481 497 673 476 142 1151 215 221 185 Core 32 | 6 . . . . . . . . . 26 Treads . | . . . . . . . . . . . Legs 4261 | 61 185 481 497 673 476 142 1151 215 221 159 Wheels . | . . . . . . . . . . . Hover . | . . . . . . . . . . . Flight . | . . . . . . . . . . . Fastest Speed 50 | 50 120 120 120 120 125 124 120 120 120 190 Average Speed 131 | 113 120 120 121 121 140 124 123 120 176 226 Slowest Speed 950 | 120 120 120 123 126 195 125 192 120 190 950 Overloaded Moves . | . . . . . . . . . . . Propulsion Burnouts . | . . . . . . . . . . . Robots Hopped . | . . . . . . . . . . . Cave-ins Triggered . | . . . . . . . . . . . Exploration Rate (%) 36 | 4 34 32 30 20 12 5 81 67 97 19 Regions Visited 10 Branch Regions 4 Pre-discovered Areas . | . . . . . . . . . . . Known Exits Taken . | . . . . . . . . . . . Unknown Exits Taken 10 | 1 1 1 1 1 1 1 1 1 1 . Scrap Searched . | . . . . . . . . . . . Spaces Dug 19 | . . . . . . . 18 . 1 . Terrain Destroyed 245 | . . 9 . 4 38 . 180 10 2 2 Melee . | . . . . . . . . . . . Projectile 66 | . . . . 4 1 . 47 10 2 2 AOE 179 | . . 9 . . 37 . 133 . . . Terrain Rammed . | . . . . . . . . . . . Walls Destroyed . | . . . . . . . . . . . Machines Disabled . | . . . . . . . . . . . Actions | -11 -10 -9 -8 -7 -6 -5 -5 -5 -5 -5 --------- Run | Yrd Mat Mat Mat Fac Fac Fac Ext Cet Arc Hub Total 5288 | 84 220 706 636 764 553 165 1405 241 272 242 Wait 438 | . 20 145 61 18 36 13 78 . 35 32 Move 4283 | 66 184 480 496 672 475 141 1150 214 220 185 Hop . | . . . . . . . . . . . Pick Up 117 | 12 5 19 11 16 13 4 30 1 3 3 Fast Attach 3 | . . . 1 1 . . 1 . . . Attach 70 | 6 1 7 9 7 6 2 19 5 1 7 Detach 2 | . . . . . . . 2 . . . Swap 45 | . . 7 3 7 9 1 16 . . 2 Drop 51 | . 2 11 3 12 5 2 15 . . 1 Fire 263 | . 8 37 51 31 9 2 82 21 11 11 Melee 10 | . . . . . . . 10 . . . Ram 1 | . . . . . . . . . . 1 Kick 1 | . . . 1 . . . . . . . Crush . | . . . . . . . . . . . Escape Stasis 2 | . . . . . . . 2 . . . Rewire 2 | . . . . . . . . . 2 . Trap . | . . . . . . . . . . . Miscellaneous . | . . . . . . . . . . . Route ------- -11/Scrapyard -10/Materials -9/Materials -8/Materials -7/Factory (discovered 3 exits: *Fac / Low x2) -6/Factory -5/Factory -5/Extension (discovered 2 exits: [*Fac] / *Cet) -5/Cetus -5/Archives (discovered 3 exits: [*Fac] / *Hub x2) -5/Hub_04(d) History --------- Turn | Location | Event 27 | -11/Scrapyard | Discovered new exit (range 16) 94 | -11/Scrapyard | Entered Materials 244 | -10/Materials | Discovered new exit (range 16) 309 | -10/Materials | Build established: Mutant 363 | -10/Materials | Entered another Materials area 363 | -9/Materials | Evolved 2 slots: Propulsion x2 1032 | -9/Materials | Repaired Broken Lgt. Nuclear Core 1060 | -9/Materials | Repaired Aluminum Leg 1227 | -9/Materials | Discovered new exit (range 5) 1231 | -9/Materials | Entered another Materials area 1231 | -8/Materials | Evolved 2 slots: Utility x2 1570 | -8/Materials | Garrison activated, responded to threat 1826 | -8/Materials | Destroyed 10 combat bots 1832 | -8/Materials | Lost 5 parts (1p3n1u) 2057 | -8/Materials | Discovered new exit (range 14) 2074 | -8/Materials | Entered Factory 2074 | -7/Factory | Evolved 2 slots: Utility x1, Weapon x1 2318 | -7/Factory | Identified exit to Lower Caves 2509 | -7/Factory | Build established: Scavenger-Gunner 2827 | -7/Factory | Garrison activated, responded to threat 2992 | -7/Factory | Discovered new exit (range 11) 3031 | -7/Factory | Entered another Factory area 3031 | -6/Factory | Evolved 2 slots: Power x1, Utility x1 3049 | -6/Factory | Lost 5 parts (1n1u3w) 3507 | -6/Factory | Repaired Imp. Titanium Leg 3754 | -6/Factory | Discovered new exit (range 10) 3792 | -6/Factory | Entered another Factory area 3792 | -5/Factory | Evolved 2 slots: Propulsion x1, Utility x1 3912 | -5/Factory | Discovered new exit (range 9) 3994 | -5/Factory | Entered Extension 4285 | -5/Extension | Central database locked down 4347 | -5/Extension | Spotted B-75 Beast 4382 | -5/Extension | Spotted B-75 Beast 4419 | -5/Extension | Lost 5 parts (2n2u1w) 4456 | -5/Extension | Rescued a captive Derelict 4457 | -5/Extension | Rescued a captive Derelict 4645 | -5/Extension | Disrupted transfer network 4779 | -5/Extension | Build established: Gunner 5114 | -5/Extension | Build established: Scavenger-Mutant 5518 | -5/Extension | Lost 8 parts (1p2n3u2w) 5649 | -5/Extension | Rescued a captive Derelict 5650 | -5/Extension | Rescued a captive Derelict 5726 | -5/Extension | Discovered new exit (range 10) 5728 | -5/Extension | Discovered new exit (range 6) 5794 | -5/Extension | First assault squad dispatched 5805 | -5/Extension | Entered Cetus 5805 | -5/Cetus | Accompanied by 2 allies 5823 | -5/Cetus | Spotted Cetus Guard 5823 | -5/Cetus | Spotted Cetus Guard 5827 | -5/Cetus | Spotted Cetus Guard 5828 | -5/Cetus | Spotted Cetus Guard 5830 | -5/Cetus | Destroyed Cetus Guard 5840 | -5/Cetus | Destroyed Cetus Guard 5852 | -5/Cetus | Destroyed Cetus Guard 5866 | -5/Cetus | Destroyed Cetus Guard 5890 | -5/Cetus | Build established: Scavenger-Gunner 5895 | -5/Cetus | Lost 4 parts (1p2n1u) 6077 | -5/Cetus | Discovered new exit (range 16) 6101 | -5/Cetus | Spotted Cetus Guard 6101 | -5/Cetus | Spotted Cetus Guard 6126 | -5/Cetus | Entered Archives 6220 | -5/Archives | Unable to access archive contents 6234 | -5/Archives | Discovered new exit (range 15) 6282 | -5/Archives | Unable to access archive contents 6282 | -5/Archives | Unable to access archive contents 6326 | -5/Archives | Unable to access archive contents 6400 | -5/Archives | Discovered new exit (range 15) 6459 | -5/Archives | Discovered new exit (range 16) 6581 | -5/Archives | Entered Hub_04(d) 6581 | -5/Hub_04(d) | Accompanied by 1 ally 6828 | -5/Hub_04(d) | Core integrity fell below 50% 6858 | -5/Hub_04(d) | Lost 8 parts (3p2n3w) 6916 | -5/Hub_04(d) | Network Hub disabled 6947 | -5/Hub_04(d) | Lost 3 parts (2n1u) 7050 | -5/Hub_04(d) | Core integrity fell below 20% 7074 | -5/Hub_04(d) | Destroyed by H-66 Slayer with Gauss Rifle Last Messages --------------- Hrd. Light Armor Plating destroyed. Penetrated by Slug. ALERT: Security rotation in progress. Penetrated by Slug. Slug penetrates Wall. 0N=F>ON#B<|6/8Z3PPPX7RD|C Penetrated by Slug. Quantum Rifle destroyed. Adv. Heat Sink destroyed. Slammed into H-66 Slayer. Penetrated by Slug. Slug penetrates Wall. Penetrated by Slug. Weapon Cycler destroyed. Slug penetrates Wall. Penetrated by Slug. Imp. Targeting Computer destroyed. Slug penetrates Wall. Penetrated by Slug. [Achievement: 10k Club] Map ----- +----------------------------------------------------+ | ???????????????????T????????????# #? "" | | ????????????????????????????????#/#########""" | | ???????????????????????### ###### ## " | | ?????????????????????# !!+ + """ ## """"" | | ?????????????????????# ! ### ## | | ??????????????????"??# ????# """ ###### | | ??????????????????"??# ??????# # #### | | ??????????????????"??# ????????# """ + | | ?????????????????????#??????????# # | | ????????????????????????????????# """ # ##"# | | ????????????????????????????????# ## ## | | ????????????????????????????????########"## ## | | ???????????? ####+######+############# ## | | ???????????? % = ## | | ???????????? h############ ## | | ???????????? h #??????????###"+### | | ?????????????? ########## #????????????? # | | ????????????????????????# #????????????? ##"" | | ????????????????????????# #?????????????""" ## | | ????????????????????????# #????????????? #### | | ????????????????????????# #?????????????""" #??? | | ????????????????????????# #????????????? #??? | | ????????????????????????# #?????????????#####??? | | ????????????????????????# #????????????????????? | | ????????????????????????# #????????????????????? | | ????????????????????????#@ #????????????????????? | | ????????????????????????# #????????????????????? | | ????????????????????????+ #????????????????????? | | ????????????????????????# #????????????????????? | | ????????????????????????# #????????????????????? | | ????????????????????????# #????????????????????? | | ????????????????????????#k #????????????????????? | | ????????????????????????# #????????????????????? | | ????????????????????????# #????????????????????? | | ????????????????????????? +????????????????????? | | ????????????????????????? #????????????????????? | | ????????????????????????? #????????????????????? | | ????????????????????????? +????????????????????? | | ????????????????????????? g#????????????????????? | | ????????????????????????? #????????????????????? | | ????????????????????????? ?????????????????????? | | ?????????????????????????????????????????????????? | | ?????????????????????????????????????????????????? | | ?????????????????????????????????????????????????? | | ?????????????????????????????????????????????????? | | ?????????????????????????????????????????????????? | | ?????????????????????????????????????????????????? | | ?????????????????????????????????????????????????? | | ?????????????????????????????????????????????????? | | ?????????????????????????????????????????????????? | +----------------------------------------------------+ Best States ------------- Heat Dissipation 90 Energy Generation 35 Energy Capacity 530 Matter Stores 300 Matter Capacity 300 Sight Range 16 Terrain Scan Density 10 Armor Coverage 450 Resistance: KI 30 Weapon Cycling 15 Evasion (%) 55 Targeting Accuracy 6 Target Analysis 6 Core Analysis 6 Kinecelleration 30 Authchip Count 1 Item Schematics ----------------- None Robot Schematics ------------------ K-01 Serf | -5/Extension | Hacked Fabricated ------------ Nothing Alien Tech Used ----------------- None Achievements -------------- 10k Club A New Friend Leap Before You Look Please Form A Line Significant Disruption Challenges ------------ None Game ------ Seed BlastGodSaw Manual? 0 Play Time 02:21:58 Cumulative 15.3 hours Start 2024.12.06 @ 20:12:49 End 2024.12.07 @ 01:46:16 Sessions 1 Manual Loads 0 Difficulty Rogue Special Mode None Game No. 19 Rogue 19 Adventurer 0 Explorer 0 Win Type - Total 0 Types 0/0/0/0/0/0/0/0/0 Lore% 11 Gallery% 17 Achievement% 16 Wizard Run 0 Options --------- Layout 1 ASCII 0 Keyboard 0 Movement Mouse Keybinds 0 Fullscreen 1 Font 24/Smallcaps Map View 50x35 Zoom Use 0% Tactical HUD 0 Map Filters NONE Filters NONE Steam 1 RUN: 775b9ff8-ccc4-4e9d-865f-dc5eae1c555d